[Event "1st Festival Galdar 2024"]
[Site "?"]
[Date "2024.09.02"]
[Round "1.19"]
[White "Mukhi Talreja, Ishita Tina"]
[Black "Del Rio De Angelis, Salvador G."]
[Result "0-1"]
[Annotator "TA"]
[ECO "A80"]
[WhiteElo "1730"]
[BlackElo "2376"]
[PlyCount "64"]
[EventDate "2024.09.02"]
[EventType "swiss"]
[SourceTitle "playchess.com"]
[Source "ChessBase"]
[SourceQuality "1"]
[TimeControl "5400+30"]

{[%evp 9,64,27,20,26,26,20,19,20,24,27,34,10,34,24,33,21,25,-13,0,-35,-12,-54,-3,-56,-51,-60,-68,-55,-56,-65,-43,-56,-42,-59,-46,-71,-61,-68,-40,-42,-36,-69,-67,-86,-57,-75,-44,-101,-99,-169,-157,-137,-145,-725,-716,-662,-374]} 1. d4 {[%emt 0:00:03]} f5 {[%emt 0:00:31]} 2. Nf3 {[%emt 0:00:18]} Nf6 {[%emt 0:00:08]} 3. e3 {[%emt 0:00:25]} e6 {[%emt 0:00:31]} 4. Be2 {[%emt 0:00:26]} Be7 {[%emt 0:01:10]} 5. b3 {[%emt 0:00:46]} O-O {[%emt 0:00:21]} 6. O-O {[%emt 0:00:30]} b6 {[%emt 0:02:01]} 7. Bb2 {[%emt 0:02:16]} Bb7 {[%emt 0:00:34]} 8. c4 {[%emt 0:03:21] The position is equal.} Ne4 {[%emt 0:02:56]} 9. Nbd2 {[%emt 0:02:03]} a5 {[%emt 0:16:33]} 10. a3 {[%emt 0:03:48]} d6 {[%emt 0:01:52]} 11. Rc1 {[%emt 0:03:02]} Nd7 {[%emt 0:02:25]} 12. b4 {[%emt 0:02:34]} c5 {[%emt 0:07:00]} 13. b5 {[%emt 0:18:13]} Bf6 {[%emt 0:02:36]} 14. Nb1 {[%emt 0:05:02]} Rc8 {[%emt 0:02:36]} 15. Nc3 {[%emt 0:01:58]} Qe7 {[%emt 0:00:39]} ({Black should play} 15... Nxc3 $15 16. Bxc3 Qe7) 16. d5 {[%emt 0:02:30]} (16. Na4 $11) 16... Nxc3 $15 {[%emt 0:08:03]} 17. Bxc3 {[%emt 0:01:21]} exd5 {[%emt 0:01:01]} 18. cxd5 {[%emt 0:00:57]} Rce8 {[%emt 0:00:18][%cal Of5f4]} 19. Bxf6 {[%emt 0:07:06]} Nxf6 {[%emt 0:02:42]} 20. Bc4 {[%emt 0:01:14]} Ng4 {[%emt 0:02:05]} 21. h3 {[%emt 0:01:50]} Ne5 {[%emt 0:00:05]} 22. Nxe5 {[%emt 0:04:59]} Qxe5 {[%emt 0:00:07]} 23. g3 {[%emt 0:01:39]} Qf6 {[%emt 0:05:01]} 24. Qd2 {[%emt 0:06:52]} Re7 {[%emt 0:01:30]} 25. Rce1 {[%emt 0:02:16]} Rfe8 {[%emt 0:00:18]} 26. Re2 {[%emt 0:01:42]} Re4 {[%emt 0:03:40]} 27. Rc1 {[%emt 0:02:11]} Qe7 {[%emt 0:02:32][%cal Of5f4] Black is more active.} 28. Bd3 {[%emt 0:04:29] [#]} (28. Kh2 $15) 28... Bxd5 $1 $17 {[%emt 0:02:24]} 29. Bxe4 {[%emt 0:01:16]} (29. Rd1 $17 Re6 (29... Re5 30. f4 $17) 30. Bxf5) 29... Qxe4 $19 {[%emt 0:00:10]} 30. f3 {[%emt 0:01:53] White is weak on the light squares} Qxf3 {[%emt 0:00:10]} 31. Rg2 $2 {[%emt 0:00:14][%mdl 8192]} (31. Kh2 $17) 31... Rxe3 {[%emt 0:01:38]} ({Weaker is} 31... Qxe3+ 32. Qxe3 Rxe3 33. Rd2 $15) 32. Rf1 {[%emt 0:04:16]} Qxg2+ {[%emt 0:00:15] Weighted Error Value: White=0.42/Black=0.10 (very precise) .  Loses game:     	White=1     	---        Mistake:       	White=3     	Black=1      Inaccurate:     	White=4     	Black=3      OK:         	White=5     	Black=9      Best:        	White=1     	---        Strong:       	---       	Black=1} 0-1

[Event "1st Festival Galdar 2024"]
[Site "?"]
[Date "2024.09.02"]
[Round "1.20"]
[White "Barlov, Dragan"]
[Black "Moreno Ramos, Aristides"]
[Result "1-0"]
[Annotator "RC"]
[ECO "E67"]
[WhiteElo "2375"]
[BlackElo "1728"]
[PlyCount "61"]
[EventDate "2024.09.02"]
[EventType "swiss"]
[SourceTitle "playchess.com"]
[Source "ChessBase"]
[SourceQuality "1"]
[TimeControl "5400+30"]

1. c4 {[%emt 0:00:38]} Nf6 {[%emt 0:00:20]} 2. Nf3 {[%emt 0:00:18]} g6 {[%emt 0:00:22]} 3. g3 {[%emt 0:00:40]} Bg7 {[%emt 0:00:17]} 4. Bg2 {[%emt 0:00:08]} O-O {[%emt 1:31:31]} 5. O-O {[%emt 1:31:16]} d6 {[%emt 0:00:00]} 6. d4 {[%emt 0:00:00]} Nbd7 {[%emt 0:00:00]} 7. Nc3 {[%emt 0:00:00]} e5 {[%emt 0:00:00]} 8. h3 {[%emt 0:00:00]} a6 {[%emt 0:00:00]} 9. Qc2 {[%emt 0:00:00]} Qe7 {[%emt 0:00:00]} 10. Rd1 {[%emt 0:00:00]} c6 {[%emt 0:00:00]} 11. e4 {[%emt 0:00:00]} Nh5 {[%emt 0:00:00]} 12. b3 {[%emt 0:00:00]} Bh8 {[%emt 0:00:00]} 13. Ba3 {[%emt 0:00:00]} Rd8 {[%emt 0:00:00]} 14. Rd2 {[%emt 0:00:00]} exd4 {[%emt 0:00:00]} 15. Nxd4 {[%emt 0:00:00]} c5 {[%emt 0:00:00]} 16. Nde2 {[%emt 0:00:00]} Ne5 {[%emt 0:00:00]} 17. Nd5 {[%emt 0:00:00]} Qg5 {[%emt 0:00:00]} 18. Rad1 {[%emt 0:00:00]} Nc6 {[%emt 0:00:00]} 19. f4 {[%emt 0:00:00]} Qh6 {[%emt 0:00:00]} 20. g4 {[%emt 0:00:00]} Bd4+ {[%emt 0:00:00]} 21. Nxd4 {[%emt 0:00:00]} Nxd4 {[%emt 0:00:00]} 22. Rxd4 {[%emt 0:00:00]} cxd4 {[%emt 0:00:00]} 23. gxh5 {[%emt 0:00:00]} gxh5 {[%emt 0:00:00]} 24. f5 {[%emt 0:00:00]} Qg5 {[%emt 0:00:00]} 25. Qf2 {[%emt 0:00:00]} h6 {[%emt 0:00:00]} 26. Qxd4 {[%emt 0:00:00]} Qg7 {[%emt 0:00:00]} 27. Nf6+ {[%emt 0:00:00]} Kh8 {[%emt 0:00:00]} 28. Bb2 {[%emt 0:00:00]} b5 {[%emt 0:00:00]} 29. Qf2 {[%emt 0:00:00]} Qg5 {[%emt 0:00:00]} 30. h4 {[%emt 0:00:00]} Qg7 {[%emt 0:13:00]} 31. Qd4 1-0